fUSD/lending_fUSD_20240426
["ID","MTS","AMOUNT","RATE_DAILY","PERIOD"]
[323597114,1714101060229,-2525.76,0.0001178,2]
[323597115,1714101060239,-500.0,0.0001178,2]
[323597116,1714101060249,-622.22035629,0.0001178,2]
[323597117,1714101060258,-1366.38,0.0001178,2]
[323597118,1714101060268,-4023.49,0.0001178,2]
[323597119,1714101060278,-1704.59,0.0001178,2]
[323597120,1714101060287,-651.42,0.0001178,2]
[323597121,1714101060297,-656.14,0.0001178,2]
[323597122,1714101060306,-2567.61,0.0001178,2]
[323597123,1714101060317,-500.0,0.0001178,2]
[323597124,1714101060327,-565.21,0.0001178,2]
[323597125,1714101060336,-500.0,0.0001178,2]
[323597126,1714101060347,-4723.15,0.0001178,2]
[323597127,1714101060358,-500.0,0.0001178,2]
[323597128,1714101060368,-768.71,0.0001178,2]
[323597129,1714101060377,-773.01,0.0001178,2]
[323597130,1714101060387,-500.0,0.0001178,2]
[323597131,1714101060396,-500.0,0.0001178,2]
[323597132,1714101060405,-500.0,0.0001178,2]
[323597133,1714101060415,-500.0,0.0001178,2]
[323597134,1714101060425,-500.0,0.0001178,2]
[323597135,1714101060435,-730.1,0.0001178,2]
[323597136,1714101060444,-500.0,0.0001178,2]
[323597137,1714101060454,-500.0,0.0001178,2]
[323597138,1714101060464,-500.0,0.0001178,2]
[323597139,1714101060474,-500.0,0.0001178,2]
[323597140,1714101060483,-500.0,0.0001178,2]
[323597141,1714101060493,-804.58,0.0001178,2]
[323597142,1714101060503,-2599.73,0.0001178,2]
[323597143,1714101060512,-2403.09,0.0001178,2]
[323597144,1714101060522,-500.0,0.0001178,2]
[323597145,1714101060532,-500.0,0.0001178,2]
[323597146,1714101060541,-500.0,0.0001178,2]
[323597147,1714101060551,-987.48,0.0001178,2]
[323597148,1714101060561,-685.7,0.0001178,2]
[323597149,1714101060572,-1065.8,0.0001178,2]
[323597150,1714101060583,-500.0,0.0001178,2]
[323597151,1714101060593,-500.0,0.0001178,2]
[323597152,1714101060603,-1013.91,0.0001178,2]
[323597153,1714101060614,-1241.06,0.0001178,2]
[323597154,1714101060624,-500.0,0.0001178,2]
[323597155,1714101060636,-3064.47,0.0001178,2]
[323597156,1714101060647,-500.0,0.0001178,2]
[323597157,1714101060656,-12059.81,0.0001178,2]
[323597158,1714101060666,-702.14,0.0001178,2]
[323597159,1714101060675,-1078.25,0.0001178,2]
[323597160,1714101060685,-500.0,0.0001178,2]
[323597161,1714101060695,-500.0,0.0001178,2]
[323597162,1714101060705,-500.0,0.0001178,2]
[323597163,1714101060715,-500.0,0.0001178,2]
[323597164,1714101060725,-500.0,0.0001178,2]
[323597165,1714101060735,-500.0,0.0001178,2]
[323597166,1714101060744,-500.0,0.0001178,2]
[323597167,1714101060753,-500.0,0.0001178,2]
[323597168,1714101060764,-825.28,0.0001178,2]
[323597169,1714101060774,-614.68,0.0001178,2]
[323597170,1714101060784,-500.0,0.0001178,2]
[323597171,1714101060794,-500.0,0.0001178,2]
[323597172,1714101060806,-1058.38,0.0001178,2]
[323597173,1714101060817,-500.0,0.0001178,2]
[323597174,1714101060825,-437.30505061,0.0001178,2]
[323597175,1714101060835,-500.0,0.0001178,2]
[323597176,1714101060846,-541.88,0.0001178,2]
[323597177,1714101060854,-500.0,0.0001178,2]
[323597178,1714101060864,-500.0,0.0001178,2]
[323597179,1714101060874,-500.0,0.0001178,2]
[323597180,1714101060885,-5347.85,0.0001178,2]
[323597181,1714101060896,-859.77,0.0001178,2]
[323597182,1714101060905,-150.0,0.00011783,2]
[323597183,1714101060916,-150.0,0.00011784,2]
[323597184,1714101060925,-150.0,0.00011787,2]
[323597185,1714101060935,-1500.0,0.00011787,2]
[323597186,1714101060945,-150.0,0.00011788,2]
[323597187,1714101060955,-150.0,0.0001179,2]
[323597188,1714101060964,-151.25289426,0.00011791,2]
[323597189,1714101060974,-1000.0,0.00011795,2]
[323597190,1714101060984,-500.0,0.00011795,2]
[323597191,1714101060994,-150.0,0.00011795,2]
[323597192,1714101061003,-150.0,0.00011803,2]
[323597193,1714101061013,-150.0,0.00011803,2]
[323597194,1714101061023,-150.0,0.00011804,2]
[323597195,1714101061034,-150.0,0.00011805,2]
[323597196,1714101061043,-150.0,0.00011806,2]
[323597197,1714101061053,-4785.47508995,0.00011813,2]
[323597198,1714101061063,-150.0,0.00011814,2]
[323597199,1714101061072,-150.0,0.00011816,2]
[323597200,1714101061082,-150.0,0.00011816,2]
[323597201,1714101061091,-150.0,0.00011817,2]
[323597202,1714101061101,-150.0,0.00011817,2]
[323597203,1714101061111,-150.0,0.00011818,2]
[323597204,1714101061120,-150.0,0.0001182,2]
[323597205,1714101061130,-150.0,0.00011823,2]
[323597206,1714101061140,-150.0,0.00011824,2]
[323597207,1714101061150,-150.0,0.00011825,2]
[323597208,1714101061332,-1500.0,0.00011826,2]
[323597209,1714101061342,-150.0,0.00011828,2]
[323597210,1714101061351,-150.0,0.00011829,2]
[323597211,1714101061360,-150.0,0.0001183,2]
[323597212,1714101061370,-150.0,0.00011832,2]
[323597213,1714101061379,-150.0,0.00011832,2]
[323597214,1714101061388,-150.0,0.00011833,2]
[323597215,1714101061397,-150.0,0.00011833,2]
[323597216,1714101061407,-150.0,0.00011833,2]
[323597217,1714101061416,-150.0,0.00011835,2]
[323597218,1714101061426,-5858.175194,0.00011851,2]
[323597219,1714101061435,-8871.236197,0.00011851,2]
[323597220,1714101061445,-1057.547509,0.00011851,2]
[323597221,1714101061454,-170.146029,0.00011851,2]
[323597222,1714101061464,-1388.013453,0.00011851,2]
[323597223,1714101061474,-2019.880602,0.00011851,2]
[323597224,1714101061483,-200.0,0.00011851,2]
[323597225,1714101061493,-1883.23892575,0.00011851,2]
[323597226,1714101061521,-14809.96725225,0.00011851,2]
[323597227,1714101061530,-150.0,0.00011853,2]
[323597228,1714101061540,-150.0,0.00011858,2]
[323597229,1714101061550,-150.0,0.00011863,2]
[323597230,1714101061559,-150.0,0.00011864,2]
[323597231,1714101061572,-1500.0,0.00011868,2]
[323597232,1714101061581,-171.5,0.0001187,2]
[323597233,1714101061591,-150.0,0.00011874,2]
[323597234,1714101061602,-150.0,0.00011878,2]
[323597235,1714101061613,-160.89285755,0.0001188,2]
[323597236,1714101061623,-150.0,0.00011892,2]
[323597237,1714101061633,-150.0,0.00011893,2]
[323597238,1714101061643,-150.0,0.00011899,2]
[323597239,1714101061654,-56352.50891605,0.000119,2]
[323597240,1714101061666,-22636.03087596,0.000119,2]
[323597241,1714101062142,-354.20748585,0.00010957,2]
[323597242,1714101062152,-306.37592355,0.000119,2]
[323597243,1714101063745,-500.0,0.00010958,2]
[323597244,1714101063754,-191.91999996,0.00010958,2]
[323597245,1714101063770,-308.08000004,0.00010958,2]
[323597246,1714101063779,-500.0,0.00010958,2]
[323597247,1714101063790,-184.98453996,0.00010958,2]
[323597248,1714101063840,-315.01546004,0.00010958,2]
[323597249,1714101063851,-500.0,0.00011232,2]
[323597250,1714101063860,-209.23,0.00011232,2]
[323597251,1714101063870,-500.0,0.00011506,2]
[323597252,1714101063879,-500.0,0.0001178,2]
[323597253,1714101063890,-4551.27403755,0.000119,2]
[323597254,1714101063902,-2928.10666384,0.000119,2]
[323597255,1714101225052,-367.67,8.789e-05,2]
[323597257,1714101692027,150.0,8.519e-05,2]
[323597258,1714101692049,150.0,8.519e-05,2]
[323597259,1714101692071,70.75,8.519e-05,2]
[323597281,1714102232214,-600.0,9.883e-05,2]
[323597282,1714102232226,-1000.0,9.883e-05,2]
[323597283,1714102232323,-270.45077345,9.883e-05,2]
[323597284,1714102232332,-199.37700655,9.884e-05,2]
[323597285,1714102232434,-247.22299345,9.884e-05,2]
[323597286,1714102232445,-122.73648917,0.0001034,2]
[323597287,1714102232457,-40.94351083,0.0001034,2]
[323597288,1714102232466,-426.55648917,0.0001034,2]
[323597297,1714102238316,-573.44351083,0.0001034,2]
[323597298,1714102238327,-160.07987315,0.00010442,2]
[323597299,1714102238337,-219.54,0.00010453,2]
[323597300,1714102238347,-175.39,0.0001057,2]
[323597301,1714102238357,-2016.66672664,0.00010857,2]
[323597302,1714102238390,-5483.33327336,0.00010857,2]
[323597303,1714102238401,-505.17790195,0.00010857,2]
[323597304,1714102238410,-160.07987314,0.00010858,2]
[323597305,1714102238420,-173.56943637,0.00010858,2]
[323597306,1714102238430,-183.4409949,0.00010858,2]
[323597307,1714102238441,-9826.0525,0.00010858,2]
[323597308,1714102238452,-500.0,0.00010858,2]
[323597309,1714102238462,-343.3913,0.00010858,2]
[323597310,1714102238473,-1000.0,0.00010858,2]
[323597311,1714102238483,-924.46,0.000109,2]
[323597312,1714102238494,-239.66986143,0.00010956,2]
[323597313,1714102238505,-257553.73295619,0.00010957,2]
[323597314,1714102238546,-708.6650105,0.00010957,2]
[323597315,1714102238632,-427887.27777418,0.00010957,2]
[323597316,1714102238642,-500.0,0.00010958,2]
[323597317,1714102238651,-500.0,0.00010958,2]
[323597318,1714102238661,-500.0,0.00010958,2]
[323597319,1714102238671,-500.0,0.00010958,2]
[323597320,1714102238681,-500.0,0.00010958,2]
[323597321,1714102238690,-500.0,0.00010958,2]
[323597322,1714102238700,-500.0,0.00010958,2]
[323597323,1714102238709,-500.0,0.00010958,2]
[323597324,1714102238719,-500.0,0.00010958,2]
[323597325,1714102238729,-500.0,0.00010958,2]
[323597326,1714102238739,-500.0,0.00010958,2]
[323597327,1714102238749,-638.66558546,0.00010958,2]
[323597328,1714102238758,-500.0,0.00010958,2]
[323597329,1714102238768,-518.08752675,0.00010958,2]
[323597330,1714102238778,-500.0,0.00010958,2]
[323597332,1714102238788,-500.0,0.00010958,2]
[323597333,1714102238797,-264.08417413,0.00010958,2]
[323597334,1714102238806,-500.0,0.00010958,2]
[323597335,1714102238815,-500.0,0.00010958,2]
[323597336,1714102238824,-500.0,0.00010958,2]
[323597337,1714102238833,-237.18313797,0.00010958,2]
[323597338,1714102238842,-500.0,0.00010958,2]
[323597339,1714102238851,-500.0,0.00010958,2]
[323597340,1714102238860,-500.0,0.00010958,2]
[323597341,1714102238870,-500.0,0.00010958,2]
[323597342,1714102238879,-500.0,0.00010958,2]
[323597343,1714102238888,-500.0,0.00010958,2]
[323597344,1714102238897,-500.0,0.00010958,2]
[323597345,1714102238906,-500.0,0.00010958,2]
[323597346,1714102238915,-500.0,0.00010958,2]
[323597347,1714102238924,-500.0,0.00010958,2]
[323597348,1714102238933,-500.0,0.00010958,2]
[323597349,1714102238942,-500.0,0.00010958,2]
[323597350,1714102238951,-500.0,0.00010958,2]
[323597351,1714102238960,-500.0,0.00010958,2]
[323597352,1714102238970,-742.26,0.00010958,2]
[323597353,1714102238981,-526.87,0.00010958,2]
[323597354,1714102238991,-500.0,0.00010958,2]
[323597355,1714102238999,-556.98678678,0.00010958,2]
[323597356,1714102239008,-500.0,0.00010958,2]
[323597357,1714102239018,-509.36699767,0.00010958,2]
[323597358,1714102239030,-1277.29,0.00010958,2]
[323597359,1714102239040,-500.0,0.00010958,2]
[323597360,1714102239048,-364.93239987,0.00010958,2]
[323597361,1714102239058,-500.0,0.00010958,2]
[323597362,1714102239067,-500.0,0.00010958,2]
[323597363,1714102239076,-500.0,0.00010958,2]
[323597364,1714102239086,-500.0,0.00010958,2]
[323597365,1714102239095,-500.0,0.00010958,2]
[323597366,1714102239105,-500.0,0.00010958,2]
[323597367,1714102239115,-500.0,0.00010958,2]
[323597368,1714102239125,-500.0,0.00010958,2]
[323597369,1714102239135,-392.64330386,0.00010958,2]
[323597370,1714102239144,-500.0,0.00010958,2]
[323597371,1714102239154,-500.0,0.00010958,2]
[323597372,1714102239165,-468.03775396,0.00010958,2]
[323597373,1714102239175,-500.0,0.00010958,2]
[323597374,1714102239186,-500.0,0.00010958,2]
[323597375,1714102239195,-500.0,0.00010958,2]
[323597376,1714102239204,-500.0,0.00010958,2]
[323597377,1714102239214,-436.26989378,0.00010958,2]
[323597378,1714102239223,-450.47672671,0.00010958,2]
[323597379,1714102239233,-500.0,0.00010958,2]
[323597380,1714102239242,-500.0,0.00010958,2]
[323597381,1714102239252,-500.0,0.00010958,2]
[323597382,1714102239261,-500.0,0.00010958,2]
[323597383,1714102239271,-500.0,0.00010958,2]
[323597384,1714102239281,-547.35,0.00010958,2]
[323597385,1714102239290,-500.0,0.00010958,2]
[323597386,1714102239300,-500.0,0.00010958,2]
[323597387,1714102239310,-503.80635038,0.00010958,2]
[323597388,1714102239320,-500.0,0.00010958,2]
[323597389,1714102239329,-366.51774072,0.00010958,2]
[323597390,1714102239339,-503.17827471,0.00010958,2]
[323597391,1714102239348,-500.0,0.00010958,2]
[323597392,1714102239358,-500.0,0.00010958,2]
[323597393,1714102239368,-500.0,0.00010958,2]
[323597394,1714102239377,-500.0,0.00010958,2]
[323597395,1714102239387,-500.0,0.00010958,2]
[323597396,1714102239397,-500.0,0.00010958,2]
[323597397,1714102239406,-500.45756175,0.00010958,2]
[323597398,1714102239417,-500.0,0.00010958,2]
[323597399,1714102239426,-500.0,0.00010958,2]
[323597400,1714102239435,-500.0,0.00010958,2]
[323597401,1714102239445,-687.33,0.00010958,2]
[323597402,1714102239455,-500.0,0.00010958,2]
[323597403,1714102239465,-500.0,0.00010958,2]
[323597404,1714102239474,-500.0,0.00010958,2]
[323597405,1714102239483,-510.70356981,0.00010958,2]
[323597406,1714102239493,-500.0,0.00010958,2]
[323597407,1714102239503,-500.0,0.00010958,2]
[323597408,1714102239512,-586.85,0.00010958,2]
[323597409,1714102239521,-500.0,0.00010958,2]
[323597410,1714102239532,-500.0,0.00010958,2]
[323597411,1714102239541,-500.0,0.00010958,2]
[323597412,1714102239549,-500.0,0.00010958,2]
[323597413,1714102239559,-500.0,0.00010958,2]
[323597414,1714102239569,-362.57283443,0.00010958,2]
[323597415,1714102239579,-500.0,0.00010958,2]
[323597416,1714102239588,-500.0,0.00010958,2]
[323597417,1714102239597,-256.04826124,0.00010958,2]
[323597418,1714102239606,-614.38,0.00010958,2]
[323597419,1714102239615,-500.0,0.00010958,2]
[323597420,1714102239625,-500.0,0.00010958,2]
[323597421,1714102239634,-500.0,0.00010958,2]
[323597422,1714102239644,-500.0,0.00010958,2]
[323597423,1714102239653,-500.0,0.00010958,2]
[323597424,1714102239662,-500.0,0.00010958,2]
[323597425,1714102239672,-500.0,0.00010958,2]
[323597426,1714102239681,-574.62,0.00010958,2]
[323597427,1714102239690,-262.64430087,0.00010958,2]
[323597428,1714102239700,-437.30505061,0.00010958,2]
[323597429,1714102239710,-500.0,0.00010958,2]
[323597430,1714102239719,-588.27,0.00010958,2]
[323597431,1714102239728,-500.0,0.00010958,2]
[323597432,1714102239737,-500.0,0.00010958,2]
[323597433,1714102239746,-500.0,0.00010958,2]
[323597434,1714102239755,-645.19,0.00010958,2]
[323597435,1714102239765,-500.0,0.00010958,2]
[323597436,1714102239773,-500.0,0.00010958,2]
[323597437,1714102239784,-500.0,0.00010958,2]
[323597438,1714102239793,-500.0,0.00010958,2]
[323597439,1714102239803,-500.0,0.00010958,2]
[323597440,1714102239812,-500.0,0.00010958,2]
[323597441,1714102239821,-500.0,0.00010958,2]
[323597442,1714102239830,-642.73,0.00010958,2]
[323597443,1714102239839,-581.56,0.00010958,2]
[323597444,1714102239848,-500.0,0.00010958,2]
[323597445,1714102239858,-500.0,0.00010958,2]
[323597446,1714102239867,-500.0,0.00010958,2]
[323597447,1714102239876,-500.0,0.00010958,2]
[323597448,1714102239886,-500.0,0.00010958,2]
[323597449,1714102239895,-500.0,0.00010958,2]
[323597450,1714102239904,-500.0,0.00010958,2]
[323597451,1714102239913,-500.0,0.00010958,2]
[323597452,1714102239922,-500.0,0.00010958,2]
[323597453,1714102239931,-500.0,0.00010958,2]
[323597454,1714102239940,-500.0,0.00010958,2]
[323597455,1714102239949,-500.0,0.00010958,2]
[323597456,1714102239959,-500.0,0.00010958,2]
[323597457,1714102239968,-542.82,0.00010958,2]
[323597458,1714102239978,-500.0,0.00010958,2]
[323597459,1714102239987,-582.63436646,0.00010958,2]
[323597460,1714102239996,-500.0,0.00010958,2]
[323597461,1714102240005,-500.0,0.00010958,2]
[323597462,1714102240013,-500.0,0.00010958,2]
[323597464,1714102240022,-500.0,0.00010958,2]
[323597466,1714102240032,-500.0,0.00010958,2]
[323597468,1714102240041,-843.19,0.00010958,2]
[323597470,1714102240050,-500.0,0.00010958,2]
[323597472,1714102240059,-500.0,0.00010958,2]
[323597474,1714102240068,-500.0,0.00010958,2]
[323597475,1714102240077,-500.0,0.00010958,2]
[323597477,1714102240086,-500.0,0.00010958,2]
[323597479,1714102240095,-500.0,0.00010958,2]
[323597481,1714102240104,-500.0,0.00010958,2]
[323597483,1714102240113,-274.16147309,0.00010958,2]
[323597486,1714102240123,-165.03390443,0.00010958,2]
[323597489,1714102240132,-467.76082014,0.00010958,2]
[323597492,1714102240142,-500.0,0.00010958,2]
[323597495,1714102240151,-577.73,0.00010958,2]
[323597497,1714102240163,-500.0,0.00010958,2]
[323597500,1714102240172,-380.00609593,0.00010958,2]
[323597503,1714102240181,-500.0,0.00010958,2]
[323597505,1714102240190,-500.0,0.00010958,2]
[323597507,1714102240202,-500.0,0.00010958,2]
[323597509,1714102240211,-500.0,0.00010958,2]
[323597511,1714102240220,-500.0,0.00010958,2]
[323597513,1714102240230,-500.0,0.00010958,2]
[323597515,1714102240239,-500.0,0.00010958,2]
[323597517,1714102240249,-616.75,0.00010958,2]
[323597518,1714102240258,-500.0,0.00010958,2]
[323597520,1714102240268,-500.0,0.00010958,2]
[323597521,1714102240277,-500.0,0.00010958,2]
[323597522,1714102240286,-500.0,0.00010958,2]
[323597523,1714102240295,-500.0,0.00010958,2]
[323597524,1714102240304,-500.0,0.00010958,2]
[323597525,1714102240313,-568.73,0.00010958,2]
[323597527,1714102240322,-500.0,0.00010958,2]
[323597529,1714102240332,-500.0,0.00010958,2]
[323597530,1714102240341,-500.0,0.00010958,2]
[323597531,1714102240351,-500.0,0.00010958,2]
[323597532,1714102240361,-787.08,0.00010958,2]
[323597533,1714102240371,-307.34258871,0.00010958,2]
[323597534,1714102240380,-500.0,0.00010958,2]
[323597535,1714102240389,-599.64,0.00010958,2]
[323597536,1714102240399,-504.23,0.00010958,2]
[323597537,1714102240409,-448.93979143,0.00010958,2]
[323597538,1714102240418,-500.0,0.00010958,2]
[323597539,1714102240427,-856.13,0.00010958,2]
[323597540,1714102240437,-500.0,0.00010958,2]
[323597541,1714102240446,-500.0,0.00010958,2]
[323597542,1714102240456,-639.71,0.00010958,2]
[323597543,1714102240465,-562.26636741,0.00010958,2]
[323597544,1714102240475,-261.14,0.00010958,2]
[323597545,1714102240485,-500.0,0.00010958,2]
[323597546,1714102240494,-500.0,0.00010958,2]
[323597547,1714102240504,-500.0,0.00010958,2]
[323597548,1714102240513,-500.0,0.00010958,2]
[323597549,1714102240523,-500.0,0.00010958,2]
[323597550,1714102240534,-500.0,0.00010958,2]
[323597551,1714102240543,-500.00000008,0.00010958,2]
[323597552,1714102240552,-500.0,0.00010958,2]
[323597553,1714102240560,-500.0,0.00010958,2]
[323597554,1714102240569,-500.0,0.00010958,2]
[323597555,1714102240579,-500.0,0.00010958,2]
[323597556,1714102240589,-500.0,0.00010958,2]
[323597557,1714102240598,-499.13855365,0.00010958,2]
[323597558,1714102240608,-500.0,0.00010958,2]
[323597559,1714102240617,-374.52127131,0.00010958,2]
[323597560,1714102240627,-580.25283825,0.00010958,2]
[323597561,1714102240637,-500.0,0.00010958,2]
[323597562,1714102240647,-500.0,0.00010958,2]
[323597563,1714102240657,-500.0,0.00010958,2]
[323597564,1714102240666,-500.0,0.00010958,2]
[323597565,1714102240675,-639.28,0.00010958,2]
[323597566,1714102240684,-500.0,0.00010958,2]
[323597567,1714102240694,-500.0,0.00010958,2]
[323597570,1714102240946,-500.0,0.00010958,2]
[323597571,1714102240956,-622.22035629,0.00010958,2]
[323597572,1714102240965,-287.80344911,0.00010958,2]
[323597573,1714102240974,-500.0,0.00010958,2]
[323597574,1714102240984,-500.0,0.00010958,2]
[323597575,1714102240993,-500.0,0.00010958,2]
[323597576,1714102241001,-500.0,0.00010958,2]
[323597577,1714102241010,-500.0,0.00010958,2]
[323597578,1714102241020,-500.0,0.00010958,2]
[323597579,1714102241030,-500.0,0.00010958,2]
[323597580,1714102241039,-500.0,0.00010958,2]
[323597581,1714102241048,-500.0,0.00010958,2]
[323597582,1714102241057,-500.0,0.00010958,2]
[323597583,1714102241066,-500.0,0.00010958,2]
[323597584,1714102241075,-500.0,0.00010958,2]
[323597585,1714102241084,-500.0,0.00010958,2]
[323597586,1714102241094,-626.08,0.00010958,2]
[323597587,1714102241103,-500.0,0.00010958,2]
[323597588,1714102241112,-500.0,0.00010958,2]
[323597589,1714102241122,-500.0,0.00010958,2]
[323597590,1714102241131,-500.0,0.00010958,2]
[323597591,1714102241141,-500.0,0.00010958,2]
[323597592,1714102241150,-500.0,0.00010958,2]
[323597593,1714102241162,-500.0,0.00010958,2]
[323597594,1714102241172,-500.0,0.00010958,2]
[323597595,1714102241181,-500.0,0.00010958,2]
[323597596,1714102241190,-500.0,0.00010958,2]
[323597597,1714102241200,-500.0,0.00010958,2]
[323597598,1714102241210,-500.0,0.00010958,2]
[323597599,1714102241221,-500.0,0.00010958,2]
[323597600,1714102241230,-500.0,0.00010958,2]
[323597601,1714102241240,-500.0,0.00010958,2]
[323597602,1714102241250,-500.0,0.00010958,2]
[323597603,1714102241260,-500.0,0.00010958,2]
[323597604,1714102241269,-500.0,0.00010958,2]
[323597605,1714102241279,-500.0,0.00010958,2]
[323597606,1714102241288,-500.0,0.00010958,2]
[323597607,1714102241297,-500.0,0.00010958,2]
[323597608,1714102241307,-500.0,0.00010958,2]
[323597609,1714102241318,-500.0,0.00010958,2]
[323597610,1714102241327,-500.0,0.00010958,2]
[323597611,1714102241337,-500.0,0.00010958,2]
[323597612,1714102241346,-500.0,0.00010958,2]
[323597613,1714102241356,-501.30283379,0.00010958,2]
[323597614,1714102241365,-500.0,0.00010958,2]
[323597615,1714102241375,-500.0,0.00010958,2]
[323597616,1714102241384,-541.18,0.00010958,2]
[323597617,1714102241394,-500.0,0.00010958,2]
[323597618,1714102241403,-500.0,0.00010958,2]
[323597619,1714102241413,-500.0,0.00010958,2]
[323597620,1714102241422,-500.0,0.00010958,2]
[323597621,1714102241432,-500.0,0.00010958,2]
[323597622,1714102241441,-500.0,0.00010958,2]
[323597623,1714102241450,-500.0,0.00010958,2]
[323597624,1714102241459,-500.0,0.00010958,2]
[323597625,1714102241468,-500.0,0.00010958,2]
[323597626,1714102241477,-500.0,0.00010958,2]
[323597627,1714102241487,-500.0,0.00010958,2]
[323597628,1714102241498,-500.0,0.00010958,2]
[323597629,1714102241508,-500.0,0.00010958,2]
[323597630,1714102241518,-500.0,0.00010958,2]
[323597631,1714102241530,-500.0,0.00010958,2]
[323597632,1714102241540,-597.86,0.00010958,2]
[323597633,1714102241551,-862.75,0.00010958,2]
[323597634,1714102241562,-500.0,0.00010958,2]
[323597635,1714102241571,-500.0,0.00010958,2]
[323597636,1714102241581,-500.0,0.00010958,2]
[323597637,1714102241591,-782.82,0.00010958,2]
[323597638,1714102241601,-500.0,0.00010958,2]
[323597639,1714102241612,-500.0,0.00010958,2]
[323597640,1714102241622,-150.99,0.00010958,2]
[323597641,1714102241632,-500.0,0.00010958,2]
[323597642,1714102241643,-500.0,0.00010958,2]
[323597643,1714102241653,-500.0,0.00010958,2]
[323597644,1714102241664,-417.02,0.00010958,2]
[323597645,1714102241673,-500.0,0.00010958,2]
[323597646,1714102241682,-581.29,0.00010958,2]
[323597647,1714102241693,-500.0,0.00010958,2]
[323597648,1714102241703,-500.0,0.00010958,2]
[323597649,1714102241713,-500.0,0.00010958,2]
[323597650,1714102241722,-500.0,0.00010958,2]
[323597651,1714102241731,-500.0,0.00010958,2]
[323597652,1714102241740,-500.0,0.00010958,2]
[323597653,1714102241749,-587.38,0.00010958,2]
[323597654,1714102241758,-500.0,0.00010958,2]
[323597655,1714102241767,-500.0,0.00010958,2]
[323597656,1714102241776,-1036.85,0.00010958,2]
[323597657,1714102241787,-500.0,0.00010958,2]
[323597658,1714102241796,-500.0,0.00010958,2]
[323597659,1714102241805,-500.0,0.00010958,2]
[323597660,1714102241814,-500.0,0.00010958,2]
[323597661,1714102241823,-500.0,0.00010958,2]
[323597662,1714102241833,-500.0,0.00010958,2]
[323597663,1714102241843,-500.0,0.00010958,2]
[323597664,1714102241853,-500.0,0.00010958,2]
[323597665,1714102241863,-304.67096797,0.00010958,2]
[323597666,1714102241873,-2910.43,0.00010958,2]
[323597667,1714102241883,-171.11606515,0.00010958,2]
[323597668,1714102241893,-500.0,0.00010958,2]
[323597669,1714102241905,-652.6,0.00010958,2]
[323597670,1714102241915,-512.24,0.00010958,2]
[323597671,1714102241925,-651.6,0.00010958,2]
[323597672,1714102241936,-745.15,0.00010958,2]
[323597673,1714102241945,-500.0,0.00010958,2]
[323597674,1714102241955,-500.0,0.00010958,2]
[323597675,1714102241967,-500.0,0.00010958,2]
[323597676,1714102241977,-620.66,0.00010958,2]
[323597677,1714102241988,-500.0,0.00010958,2]
[323597678,1714102241998,-500.0,0.00010958,2]
[323597679,1714102242009,-4100.53,0.00010958,2]